bitfinex-derivatives/quotes_SOLF0:USTF0_20251109
["timestamp","ask_amount","ask_price","bid_price","bid_amount"]
[1762705037094,2.98170544,161.86,161.82,1.0]
[1762705037998,2.98170544,161.86,161.82,3.76]
[1762705038797,2.94,161.85,161.82,3.76]
[1762705039897,2.94,161.85,161.82,1.0]
[1762705041402,2.94,161.84,161.82,1.0]
[1762705043105,2.94,161.83,161.82,1.0]
[1762705043407,8.5024,161.84,161.82,1.0]
[1762705043605,2.94,161.83,161.82,1.0]
[1762705046605,5.60340544,161.86,161.82,1.0]
[1762705046810,2.94,161.85,161.82,3.76]
[1762705047304,0.04170544,161.86,161.83,2.76]
[1762705047700,2.98170544,161.86,161.83,2.76]
[1762705048312,8.54340544,161.86,161.83,2.76]
[1762705048702,2.98170544,161.86,161.82,1.0]
[1762705049508,5.5621,161.85,161.82,1.0]
[1762705050108,8.5021,161.85,161.82,1.0]
[1762705052915,0.04170544,161.86,161.82,1.0]
[1762705052916,3.17,161.83,161.82,1.0]
[1762705053911,3.17,161.85,161.82,1.0]
[1762705054112,5.60350544,161.86,161.83,2.76]
[1762705054609,8.77350544,161.86,161.82,1.0]
[1762705055011,0.04170544,161.86,161.83,2.76]
[1762705055511,0.04170544,161.86,161.84,2.76]
[1762705059803,8.732,161.85,161.82,1.0]
[1762705060003,3.21170544,161.86,161.82,3.76]
[1762705060608,8.77340544,161.86,161.82,3.76]
[1762705061011,3.21170544,161.86,161.82,3.76]
[1762705062319,8.77330544,161.86,161.82,3.76]
[1762705062915,3.21170544,161.86,161.83,2.76]
[1762705064015,0.04170544,161.86,161.83,2.76]
[1762705065215,3.21170544,161.86,161.82,6.5628]
[1762705065516,3.21170544,161.86,161.83,2.76]
[1762705066620,0.04170544,161.86,161.83,2.76]
[1762705066917,8.66340544,161.86,161.82,1.0]
[1762705067121,3.06,161.85,161.82,1.0]
[1762705067912,4.37431607,161.85,161.83,2.76]
[1762705068209,4.37427258,161.85,161.83,2.76]
[1762705068724,0.04170544,161.86,161.83,2.76]
[1762705070619,3.06,161.93,161.84,2.76]
[1762705070814,3.06,161.97,161.89,2.76]
[1762705071014,8.618,161.97,161.91,2.76]
[1762705071218,3.06,161.96,161.88,2.76]
[1762705071721,3.06,161.93,161.9,0.04368043]
[1762705072317,3.06,161.91,161.9,0.04368043]
[1762705072524,3.06,161.9,161.82,1.0]
[1762705072723,3.06,161.89,161.82,1.0]
[1762705073316,3.06,161.89,161.82,3.76]
[1762705073522,0.04107812,161.87,161.83,2.76]
[1762705075726,3.10107812,161.87,161.83,2.76]
[1762705075912,3.06,161.86,161.83,2.76]
[1762705077421,3.06,161.86,161.83,3.76]
[1762705077728,0.04107812,161.87,161.83,3.76]
[1762705078027,3.10107812,161.87,161.83,3.76]
[1762705079827,0.04107812,161.87,161.84,2.76]
[1762705083437,0.04107812,161.87,161.84,3.76]
[1762705087131,0.04107812,161.87,161.85,2.75]
[1762705087531,2.03676942,161.95,161.87,2.75]
[1762705087830,3.17,161.99,161.9,2.75]
[1762705088423,3.21448835,161.96,161.93,0.04002905]
[1762705088627,8.77278835,161.96,161.93,0.04002905]
[1762705089032,8.77278835,161.96,161.93,2.79002905]
[1762705089341,3.21448835,161.96,161.93,2.79002905]
[1762705090039,3.21448835,161.96,161.93,0.04002905]
[1762705092033,8.77288835,161.96,161.93,0.04002905]
[1762705092335,3.17,161.95,161.93,0.04002905]
[1762705095139,3.21448835,161.96,161.93,0.04002905]
[1762705096738,0.04448835,161.96,161.94,2.75]
[1762705097127,212.53363515,162.0,161.94,2.75]
[1762705097128,212.53363515,162.0,161.94,4.78676942]
[1762705097335,3.17,162.02,161.95,2.75]
[1762705097731,5.556,162.03,161.97,2.75]
[1762705097934,8.726,162.03,161.97,2.75]
[1762705098138,3.21067123,162.02,161.98,0.04517859]
[1762705098744,3.21067123,162.02,161.98,2.79517859]
[1762705099050,0.04067123,162.02,161.98,2.79517859]
[1762705099235,0.04067123,162.02,162.0,2.75]
[1762705100038,0.04067123,162.02,162.0,3.75]
[1762705100240,0.04067123,162.02,162.01,2.75]
[1762705101340,3.17,162.08,162.01,2.75]
[1762705101649,3.17,162.08,162.02,2.75]
[1762705101846,67.74676942,162.11,162.02,2.75]
[1762705102239,8.7236,162.1,162.02,2.75]
[1762705102442,0.03907534,162.08,162.05,2.75]
[1762705102746,3.20907534,162.08,162.05,2.75]
[1762705103142,0.03907534,162.08,162.05,2.75]
[1762705104245,0.03907534,162.08,162.05,3.75]
[1762705104749,0.03907534,162.08,162.06,2.75]
[1762705107553,3.17,162.14,162.06,2.75]
[1762705107949,3.17,162.14,162.08,2.75]
[1762705108846,0.04451959,162.13,162.1,2.75]
[1762705111550,3.21451959,162.13,162.1,1.0]
[1762705111855,3.0,162.12,162.1,1.0]
[1762705113451,3.0,162.11,162.1,1.0]
[1762705115456,3.04451959,162.13,162.1,1.0]
[1762705115844,3.0,162.11,162.1,1.0]
[1762705116451,0.04451959,162.13,162.1,3.75]
[1762705116651,0.04451959,162.13,162.11,2.75]
[1762705118771,0.04451959,162.13,162.1,3.75]
[1762705119155,0.04451959,162.13,162.11,2.75]
[1762705124961,11.12,162.22,162.16,2.71]
[1762705124962,3.0,162.22,162.16,2.71]
[1762705125160,3.0,162.22,162.13,2.71]
[1762705125358,3.0,162.2,162.1,3.71]
[1762705125558,3.17218463,162.18,162.1,3.71]
[1762705125760,3.0,162.17,162.11,2.71]
[1762705125968,0.04244492,162.16,162.13,2.71]
[1762705128672,3.11244492,162.16,162.12,0.03899165]
[1762705128868,3.11244492,162.16,162.12,2.73899165]
[1762705129162,3.11244492,162.16,162.12,0.03899165]
[1762705129363,3.07,162.14,162.12,0.03899165]
[1762705129562,3.07,162.14,162.05,3.7]
[1762705129769,11.79538463,162.11,162.05,3.7]
[1762705129968,3.07,162.1,162.05,3.7]
[1762705130369,3.07,162.09,162.05,3.7]
[1762705130566,3.11477675,162.09,162.05,3.73928339]
[1762705131760,0.04477675,162.09,162.06,2.7]
[1762705133070,0.04477675,162.09,162.08,2.7]
[1762705135061,3.07,162.15,162.09,2.7]
[1762705135569,3.17218463,162.17,162.1,8.2532]
[1762705136069,0.04283219,162.15,162.12,2.74431718]
[1762705136578,3.11283219,162.15,162.12,0.04431718]
[1762705137066,3.07,162.13,162.12,0.04431718]
[1762705137467,5.5521,162.14,162.12,0.04431718]
[1762705137670,3.11283219,162.15,162.12,0.04431718]
[1762705139264,8.66473219,162.15,162.12,0.04431718]
[1762705139464,3.11283219,162.15,162.12,0.04431718]
[1762705139968,3.07,162.14,162.12,0.04431718]
[1762705140759,8.6221,162.14,162.12,0.04431718]
[1762705140960,3.07,162.13,162.06,2.7]
[1762705141260,6.24218463,162.12,162.06,2.7]
[1762705141563,11.79498463,162.12,162.06,2.7]
[1762705141957,3.20655633,162.11,162.07,0.04044881]
[1762705143073,0.04655633,162.11,162.07,2.75044881]
[1762705145862,0.04655633,162.11,162.09,2.71]
[1762705146162,3.16,162.17,162.09,2.71]
[1762705146675,3.16,162.17,162.07,7.6093588]
[1762705146676,3.16,162.17,162.12,2.71]
[1762705147068,3.16,162.15,162.13,0.04269011]
[1762705148978,3.20515412,162.16,162.13,0.04269011]
[1762705149182,0.04515412,162.16,162.13,2.75269011]
[1762705149778,0.04515412,162.16,162.13,8.30489011]
[1762705149984,31.51218463,162.24,162.14,2.71]
[1762705150284,28.34,162.24,162.15,2.71]
[1762705150982,28.34,162.24,162.13,7.6093588]
[1762705150983,0.04478698,162.21,162.18,2.75529797]
[1762705151783,0.04478698,162.21,162.19,2.71]
[1762705153581,0.04478698,162.21,162.2,2.71]
[1762705153776,3.16,162.27,162.2,2.71]
[1762705154076,3.16,162.27,162.2,8.2597]
[1762705154276,3.16,162.27,162.21,2.71]
[1762705154680,3.16,162.3,162.22,2.71]
[1762705154872,0.0397263,162.26,162.22,2.75530332]
[1762705156379,0.0397263,162.26,162.24,2.71]
[1762705156584,3.1997263,162.26,162.22,2.75530332]
[1762705156784,0.0397263,162.26,162.22,2.75530332]
[1762705156984,3.1997263,162.26,162.22,2.75530332]
[1762705157584,3.1997263,162.26,162.22,0.04530332]
[1762705159888,3.16,162.25,162.22,0.04530332]
[1762705160677,0.0397263,162.26,162.11,2.75]
[1762705160678,3.16,162.24,162.11,2.75]
[1762705161082,8.7106,162.19,162.11,8.3028]
[1762705161279,3.16,162.18,162.11,2.75]
[1762705161693,3.20751517,162.16,162.13,0.04179208]
[1762705168889,0.04751517,162.16,162.13,2.79179208]
[1762705171997,5.03657951,162.16,162.13,0.04179208]
[1762705172792,5.03657951,162.16,162.13,2.79179208]
[1762705173594,3.00751517,162.16,162.13,2.79179208]
[1762705174395,3.00751517,162.16,162.13,0.04179208]
[1762705175899,0.04751517,162.16,162.13,2.79179208]
[1762705177393,3.00751517,162.16,162.13,0.04179208]
[1762705179200,0.04751517,162.16,162.13,2.79179208]
[1762705179599,3.00751517,162.16,162.13,2.79179208]
[1762705181897,3.00751517,162.16,162.13,8.34399208]
[1762705182404,0.04751517,162.16,162.14,8.3019]
[1762705182611,0.04751517,162.16,162.15,2.75]
[1762705182906,0.04751517,162.16,162.13,2.79179208]
[1762705183110,3.00751517,162.16,162.13,2.79179208]
[1762705183300,3.00751517,162.16,162.13,0.04179208]
[1762705186803,5.19906434,162.14,162.05,1.0]
[1762705187002,3.17,162.1,162.05,1.0]
[1762705187204,3.17,162.1,162.05,6.5549]
[1762705187405,3.17,162.1,162.05,9.3449]
[1762705187909,3.21349022,162.09,162.06,0.0457341]
[1762705190218,0.04349022,162.09,162.07,2.79]
[1762705190810,0.04349022,162.09,162.07,8.3442]
[1762705191008,0.04349022,162.09,162.07,5.5542]
[1762705191316,0.04349022,162.09,162.06,0.0457341]
[1762705191616,3.21349022,162.09,162.06,0.0457341]
[1762705192715,3.21349022,162.09,162.06,5.6003341]
[1762705195016,3.21349022,162.09,162.06,0.0457341]
[1762705197423,3.21349022,162.09,162.07,5.5543]
[1762705198924,3.21349022,162.09,162.06,2.8357341]
[1762705199427,3.21349022,162.09,162.07,5.5543]
[1762705201425,3.21349022,162.09,162.06,0.0457341]
[1762705201621,3.21349022,162.09,162.06,2.8357341]
[1762705201828,0.04349022,162.09,162.06,2.8357341]
[1762705202220,3.03,162.14,162.08,2.79]
[1762705202418,3.03,162.17,162.09,2.79]
[1762705203117,3.03,162.17,162.12,2.79]
[1762705203319,0.04636386,162.16,162.13,2.83624492]
[1762705204022,0.04636386,162.16,162.14,5.5519]
[1762705204222,0.04636386,162.16,162.15,2.79]
[1762705204421,3.03,162.2,162.15,2.79]
[1762705205017,3.03,162.2,162.16,5.5511]
[1762705205221,3.03,162.2,162.15,2.79]
[1762705205422,0.04575301,162.19,162.17,2.79]
[1762705205730,0.04240747,162.2,162.19,8.3401]
[1762705206024,3.03,162.25,162.19,2.79]
[1762705206822,3.03,162.25,162.14,11.41403821]
[1762705206823,3.03,162.25,162.2,4.86378236]
[1762705207124,0.04266865,162.24,162.21,2.79]
[1762705207320,0.04361843,162.24,162.21,2.83540348]
[1762705207829,3.07361843,162.24,162.21,0.04540348]
[1762705208028,0.04361843,162.24,162.21,2.83540348]
[1762705208331,0.04361843,162.24,162.21,4.86446782]
[1762705208529,0.04361843,162.24,162.22,2.79]
[1762705208726,3.03,162.3,162.24,2.79]
[1762705209028,3.03,162.34,162.27,2.79]
[1762705209220,3.03,162.33,162.27,2.79]
[1762705209823,3.07439883,162.32,162.28,0.04136436]
[1762705210021,3.07439883,162.32,162.28,2.83136436]
[1762705210223,3.03,162.39,162.29,2.79]
[1762705210428,3.03,162.39,162.28,0.04136436]
[1762705210429,3.03,162.39,162.32,2.79]
[1762705210631,3.03,162.39,162.33,2.02906434]
[1762705210829,3.03,162.39,162.34,2.79]
[1762705211025,2.02906434,162.38,162.31,2.79]
[1762705211233,3.03,162.37,162.31,2.79]
[1762705211435,0.04491864,162.36,162.33,0.0448458]
[1762705212028,0.04491864,162.36,162.33,2.8348458]
[1762705214032,0.04491864,162.36,162.34,2.79]
[1762705214434,0.04491864,162.36,162.34,8.3348]
[1762705214637,5.5417,162.45,162.35,2.79]
[1762705214935,3.03,162.44,162.35,2.79]
[1762705215330,3.03,162.44,162.36,2.79]
[1762705215525,3.03,162.44,162.38,0.04254816]
[1762705215730,0.04024867,162.42,162.38,2.83254816]
[1762705215929,3.07024867,162.42,162.38,0.04254816]
[1762705216433,3.03,162.4,162.38,0.04254816]
[1762705219840,3.03,162.39,162.29,2.79]
[1762705220839,0.03892621,162.36,162.32,2.83179094]
[1762705221438,3.06892621,162.36,162.32,2.83179094]
[1762705222944,3.06892621,162.36,162.32,0.04179094]
[1762705223646,0.03892621,162.36,162.32,2.83179094]
[1762705225051,0.03892621,162.36,162.33,2.79]
[1762705225844,3.06892621,162.36,162.32,0.04179094]
[1762705226957,8.61362621,162.36,162.32,0.04179094]
[1762705227263,3.03,162.35,162.32,0.04179094]
[1762705230253,3.06892621,162.36,162.32,2.83179094]
[1762705230457,3.06892621,162.36,162.32,0.04179094]
[1762705231161,0.03892621,162.36,162.32,2.83179094]
[1762705231460,3.06892621,162.36,162.32,8.37729094]
[1762705232048,3.06892621,162.36,162.32,0.04179094]
[1762705232251,0.03892621,162.36,162.32,2.82179094]
[1762705232452,3.01892621,162.36,162.32,2.82179094]
[1762705232656,3.01892621,162.36,162.32,0.04179094]
[1762705235665,0.03892621,162.36,162.32,2.82179094]
[1762705236264,0.03892621,162.36,162.34,2.78]
[1762705237361,3.01892621,162.36,162.32,2.82179094]
[1762705237556,3.01892621,162.36,162.32,0.04179094]
[1762705239062,2.98,162.35,162.32,0.04179094]
[1762705240566,2.98,162.34,162.32,0.04179094]
[1762705240962,2.98,162.34,162.21,18.07286849]
[1762705240963,2.98,162.27,162.2,2.78]
[1762705241460,8.5277,162.27,162.2,8.3298]
[1762705241665,2.98,162.26,162.2,5.5498]
[1762705241859,2.98,162.24,162.21,0.04127212]
[1762705245770,2.98,162.23,162.21,0.04127212]
[1762705250567,2.96,162.22,162.21,0.04127212]
[1762705251373,2.96,162.2,162.13,2.83]
[1762705251573,2.96,162.2,162.14,5.5518]
[1762705252277,5.5491,162.23,162.1,8.23644528]
[1762705252278,3.00746902,162.19,162.15,8.42079586]
[1762705253081,3.00746902,162.19,162.15,2.86929586]
[1762705253671,0.04746902,162.19,162.15,2.86929586]
[1762705254079,0.04746902,162.19,162.18,8.3806]
[1762705254277,3.00746902,162.19,162.18,5.5506]
[1762705254480,3.00746902,162.19,162.15,0.03929586]
[1762705254779,0.04746902,162.19,162.15,2.86929586]
[1762705254968,3.00746902,162.19,162.15,2.86929586]
[1762705256581,3.00746902,162.19,162.15,0.03929586]
[1762705260689,3.00746902,162.19,162.16,5.5511]
[1762705262586,0.04746902,162.19,162.17,8.3808]
[1762705262889,3.05,162.25,162.18,2.83]
[1762705263088,3.05,162.31,162.18,2.83]
[1762705263482,3.05,162.27,162.22,5.5492]
[1762705263988,3.05,162.25,162.23,0.04101583]
[1762705265593,0.04185756,162.26,162.23,8.41981583]
[1762705266090,3.09185756,162.26,162.23,5.58981583]
[1762705266385,3.09185756,162.26,162.13,2.83]
[1762705266584,3.05,162.26,162.13,2.83]
[1762705267280,3.05,162.2,162.18,0.04375154]
[1762705267592,3.05,162.2,162.16,5.5512]
[1762705267788,3.09154354,162.2,162.16,5.59632462]
[1762705268991,3.09154354,162.2,162.16,0.04512462]
[1762705271296,8.64164354,162.2,162.16,0.04512462]
[1762705271594,3.05,162.19,162.16,0.04512462]
[1762705275687,3.05,162.17,162.16,0.04512462]
[1762705276196,3.05,162.19,162.16,0.04512462]
[1762705279992,8.6004,162.19,162.16,0.04512462]
[1762705280299,3.05,162.18,162.16,0.04512462]
[1762705282094,3.05,162.17,162.16,0.04512462]
[1762705285806,3.05,162.16,162.08,10.4393588]
[1762705286311,3.05,162.16,162.1,5.5531]
[1762705286692,3.05,162.15,162.11,0.04315]
[1762705286902,3.09015578,162.15,162.11,0.04315]
[1762705288312,8.64195578,162.15,162.11,0.04315]
[1762705288499,3.05,162.14,162.11,0.04315]
[1762705289004,0.04015578,162.15,162.12,8.3825]
[1762705289196,0.04015578,162.15,162.13,2.83]
[1762705289398,0.04015578,162.15,162.11,2.87315]
[1762705290008,0.04015578,162.15,162.13,5.5522]
[1762705291007,0.04015578,162.15,162.13,8.3822]
[1762705291910,0.04015578,162.15,162.14,2.83]
[1762705292106,2.9,162.21,162.16,8.3813]
[1762705292402,2.9,162.21,162.16,2.83]
[1762705293207,2.94518708,162.2,162.17,0.04350213]
[1762705299916,2.94518708,162.2,162.17,5.59440213]
[1762705300099,2.94518708,162.2,162.17,8.42440213]
[1762705300306,0.04518708,162.2,162.17,8.42440213]
[1762705301010,0.04518708,162.2,162.18,5.5506]
[1762705301307,0.04518708,162.2,162.17,2.87350213]
[1762705301308,2.94518708,162.2,162.17,0.04350213]
[1762705302814,0.04518708,162.2,162.18,8.3805]
[1762705303013,0.04518708,162.2,162.18,5.5505]
[1762705303716,0.04518708,162.2,162.19,2.83]
[1762705303912,0.04518708,162.2,162.18,5.5505]
[1762705305116,0.04518708,162.2,162.19,2.83]
[1762705306610,0.04518708,162.2,162.18,5.5505]
[1762705307517,2.96518708,162.2,162.17,2.87350213]
[1762705308410,2.96518708,162.2,162.17,0.04350213]
[1762705309317,0.04518708,162.2,162.17,2.87350213]
[1762705309518,0.04518708,162.2,162.19,2.83]
[1762705310514,0.04518708,162.2,162.18,8.3805]
[1762705313323,0.04518708,162.2,162.19,2.83]
[1762705314522,2.92,162.28,162.21,2.83]
[1762705315417,2.92,162.25,162.23,5.5938069]
[1762705316816,2.92,162.25,162.23,7.62152659]
[1762705317319,2.9658729,162.26,162.23,10.45152659]
[1762705319214,2.9658729,162.26,162.24,5.5485]
[1762705319620,0.0458729,162.26,162.24,5.5485]
[1762705320224,2.9658729,162.26,162.24,5.5485]
[1762705321624,410.0,162.38,162.31,2.83]
[1762705321827,2.93,162.46,162.38,2.82]
[1762705322127,2.93,162.46,162.45,2.02771969]
[1762705322523,2.93,162.5,162.45,2.02771969]
[1762705322827,2.93,162.48,162.37,10.54]
[1762705323124,2.93,162.48,162.4,2.02771969]
[1762705323322,2.93,162.48,162.3,7.65803177]
[1762705323323,2.93,162.43,162.36,2.02771969]
[1762705323818,2.93,162.39,162.38,0.03929462]
[1762705329219,4.17,162.39,162.38,0.03929462]
[1762705329419,2.93,162.36,162.29,5.05900911]
[1762705329620,2.93,162.36,162.24,26.37369034]
[1762705329821,2.93,162.36,162.24,23.46369034]
[1762705330024,2.93,162.3,162.21,2.91]
[1762705330420,2.9748443,162.27,162.24,0.03921293]
[1762705335731,0.0448443,162.27,162.24,2.94921293]
[1762705336432,0.0448443,162.27,162.24,8.00822204]
[1762705336644,0.0448443,162.27,162.25,2.91]
[1762705337023,0.0448443,162.27,162.25,8.458]
[1762705337226,0.0448443,162.27,162.24,8.00822204]
[1762705338429,0.0448443,162.27,162.25,2.91]
[1762705340641,2.93,162.31,162.25,2.91]
[1762705340842,2.93,162.34,162.25,2.91]
[1762705341143,2.93,162.34,162.27,5.5473]
[1762705341841,2.97056957,162.32,162.29,0.04379443]
[1762705342143,2.97261901,162.32,162.29,0.04395426]
[1762705342436,0.04261901,162.32,162.29,2.95395426]
[1762705342641,0.04261901,162.32,162.3,2.91]
[1762705342829,2.93,162.35,162.3,2.91]
[1762705343227,2.93,162.4,162.31,5.5459]
[1762705343838,3.98,162.41,162.34,0.04706957]
[1762705343839,2.93,162.36,162.34,0.04706957]
[1762705346942,2.93,162.36,162.35,2.0235488]
[1762705351342,410.0,162.46,162.36,2.91]
[1762705351543,248.6759268,162.49,162.42,2.0235488]
[1762705352247,2.0235488,162.48,162.4,2.0235488]
[1762705352441,2.0235488,162.48,162.38,2.0235488]
[1762705352643,2.0235488,162.46,162.37,2.0235488]
[1762705353242,5.5433,162.4,162.37,2.0235488]
[1762705353444,3.18,162.39,162.37,2.0235488]
[1762705353845,3.18,162.39,162.36,0.04394189]
[1762705354241,8.7237,162.39,162.36,0.04394189]
[1762705354440,3.18,162.38,162.36,0.04394189]
[1762705354636,3.18,162.38,162.29,2.0235488]
[1762705354838,3.18,162.31,162.22,3.02]
[1762705355044,3.18,162.26,162.15,10.67803177]
[1762705355345,3.18,162.24,162.15,3.02]
[1762705355848,0.0437308,162.21,162.18,3.05947119]
[1762705357538,0.0437308,162.21,162.2,3.02]
[1762705359541,0.0437308,162.21,162.19,5.5501]
[1762705360646,0.0437308,162.21,162.19,8.5701]
[1762705361145,0.0437308,162.21,162.2,3.02]
[1762705364740,0.0437308,162.21,162.19,8.5701]
[1762705366347,0.0437308,162.21,162.2,2.92]
[1762705367746,3.2137308,162.21,162.19,2.0]
[1762705368148,0.0437308,162.21,162.19,2.0]
[1762705368548,3.2137308,162.21,162.19,2.0]
[1762705369957,0.0437308,162.21,162.19,2.0]
[1762705373347,0.0437308,162.21,162.2,2.92]
[1762705380556,3.17,162.29,162.2,2.92]
[1762705380760,3.17,162.28,162.2,2.92]
[1762705381167,3.17,162.28,162.19,2.0]
[1762705381464,3.17,162.24,162.19,2.0]
[1762705381662,3.17,162.22,162.2,0.03999461]
[1762705383668,3.17,162.22,162.2,5.58979461]
[1762705383865,0.04569013,162.23,162.2,5.58979461]
[1762705384058,3.03569013,162.23,162.2,8.50979461]
[1762705384568,3.03569013,162.23,162.2,5.58979461]
[1762705385963,0.04569013,162.23,162.21,8.4693]
[1762705386466,0.04569013,162.23,162.22,2.92]
[1762705388361,0.04569013,162.23,162.21,5.5493]
[1762705388768,3.03569013,162.23,162.2,0.03999461]
[1762705389865,3.03569013,162.23,162.2,5.58989461]
[1762705390460,0.04569013,162.23,162.21,2.92]
[1762705390861,0.04569013,162.23,162.21,8.4695]
[1762705392163,0.04569013,162.23,162.22,2.92]
[1762705393673,0.04569013,162.23,162.21,5.5495]
[1762705393872,3.03569013,162.23,162.21,5.5495]
[1762705394775,0.04569013,162.23,162.21,5.5495]
[1762705395867,3.03569013,162.23,162.21,5.5495]
[1762705396470,0.04569013,162.23,162.21,5.5495]
[1762705396667,0.04569013,162.23,162.21,8.4695]
[1762705398876,0.04569013,162.23,162.21,2.92]
[1762705401465,0.04569013,162.23,162.22,2.92]
[1762705401665,2.99,162.29,162.22,2.92]
[1762705402280,2.99,162.29,162.23,5.5487]
[1762705402776,2.99,162.27,162.24,0.04672035]
[1762705403382,2.99,162.35,162.27,2.92]
[1762705403580,2.99,162.35,162.25,7.65803177]
[1762705403780,8.62503271,162.35,162.23,7.65803177]
[1762705404080,8.62503271,162.35,162.2,3.16665939]
[1762705404081,2.99,162.29,162.2,7.65803177]
[1762705404475,2.99,162.25,162.23,0.04661112]
[1762705406088,2.99,162.24,162.23,0.04661112]
[1762705407693,2.99,162.23,162.15,7.65803177]
[1762705407990,2.99,162.23,162.12,10.57803177]
[1762705408186,2.99,162.21,162.12,10.57803177]
[1762705408387,2.99,162.19,162.12,10.57803177]
[1762705408787,3.03592454,162.17,162.14,0.04178024]
[1762705409784,3.03592454,162.17,162.09,7.65803177]
[1762705410086,3.03592454,162.17,162.08,2.92]
[1762705410087,2.99,162.15,162.08,2.92]
[1762705410281,58.84,162.2,162.08,2.92]
[1762705410282,2.99,162.14,162.08,2.92]
[1762705410785,2.99,162.12,162.09,0.04577649]
[1762705414990,0.04613348,162.13,162.09,3.05577649]
[1762705416291,0.04613348,162.13,162.11,3.01]
[1762705417091,0.04613348,162.13,162.11,8.5628]
[1762705417397,0.04613348,162.13,162.12,3.01]
[1762705418300,2.97613348,162.13,162.09,0.04577649]
[1762705418489,2.97613348,162.13,162.09,3.05577649]
[1762705418888,2.97613348,162.13,162.09,0.04577649]
[1762705419291,2.97613348,162.13,162.09,3.05577649]
[1762705421594,2.97613348,162.13,162.09,0.04577649]
[1762705421801,2.97613348,162.13,162.09,3.05577649]
[1762705425291,2.97613348,162.13,162.09,0.04577649]
[1762705425898,2.97613348,162.13,162.09,3.05577649]
[1762705426904,2.97613348,162.13,162.09,0.04577649]
[1762705427208,3.12,162.11,162.09,0.04577649]
[1762705428098,3.12,162.11,162.09,2.04577649]
[1762705429203,3.16613348,162.13,162.09,5.15577649]
[1762705429599,3.16613348,162.13,162.09,2.04577649]
[1762705430506,3.16613348,162.13,162.09,5.15577649]
[1762705430900,3.16613348,162.13,162.09,10.70937649]
[1762705431610,3.16613348,162.13,162.09,2.04577649]
[1762705433607,3.12,162.11,162.09,2.04577649]
[1762705435109,3.12,162.1,162.09,2.04577649]
[1762705436807,3.12,162.08,162.05,1.0]
[1762705437109,3.12,162.07,162.05,1.0]
[1762705438104,0.04343253,162.08,162.05,1.0]
[1762705438304,3.16343253,162.08,162.05,1.0]
[1762705438598,3.16343253,162.08,162.05,4.11]
[1762705438805,0.04343253,162.08,162.06,3.11]
[1762705440110,0.04343253,162.08,162.05,1.0]
[1762705440305,3.16343253,162.08,162.05,1.0]
[1762705440610,3.16343253,162.08,162.05,4.11]
[1762705440810,3.16343253,162.08,162.05,1.0]
[1762705441806,0.04343253,162.08,162.06,3.13]
[1762705443510,0.04343253,162.08,162.05,1.0]
[1762705443712,3.03343253,162.08,162.05,1.0]
[1762705445603,3.03343253,162.08,162.05,9.685]
[1762705445804,3.03343253,162.08,162.05,1.0]
[1762705446710,2.99,162.07,162.05,1.0]
[1762705447213,2.99,162.06,162.05,1.0]
[1762705448317,2.99,162.06,162.05,3.0]
[1762705450117,3.03343253,162.08,162.05,6.13]
[1762705450312,0.04343253,162.08,162.05,6.13]
[1762705450615,3.03343253,162.08,162.05,3.0]
[1762705451205,7.42666146,162.08,162.05,3.0]
[1762705451406,2.99,162.07,162.05,3.0]
[1762705452412,3.03343253,162.08,162.05,3.0]
[1762705452614,2.99,162.07,162.05,3.0]
[1762705453216,7.38322893,162.07,162.05,3.0]
[1762705453418,2.99,162.06,162.05,3.0]
[1762705456218,3.03343253,162.08,162.05,6.13]
[1762705456419,3.03343253,162.08,162.05,3.0]
[1762705456725,3.03343253,162.08,162.05,6.13]
[1762705458125,0.04343253,162.08,162.05,6.13]